Cogmind - Beta 13 @@@ ROGUE MODE // 2024.04.04 @ 19:23:33 Player: sewer jenny Result: Destroyed by D-53 Grenadier with Mini Grenade Launcher Performance ------------- Evolutions (0) 0 Regions Visited (2) 400 Robots Destroyed (19) 95 Value Destroyed (435) 435 Prototype IDs (0) 0 Alien Tech Used (0) 0 Bonus (-36) -36 TOTAL SCORE: 894 Bonus ------- Friendly Fire -36 Cogmind --------- Core Integrity 0/250 Matter 300/300 Energy 124/125 System Corruption 2% Temperature Cool (0) Movement Core (250) Ox4 Location -10/Mines Parts ------- > --- POWER (1) -------- Light Ion Engine > --- PROPULSION (2) --- Titanium Leg > --- UTILITY (2) ------ Medium Storage Unit Improved Targeting Computer > --- WEAPON (2) ------- Assault Rifle > --- INVENTORY (10) --- Aluminum Leg Aluminum Leg Aluminum Leg Small Storage Unit Decoy Drone Bay Peak State ------------ > --- POWER ------------ Light Nuclear Core > --- PROPULSION ------- Aluminum Leg Titanium Leg > --- UTILITY ---------- Medium Storage Unit Improved Targeting Computer > --- WEAPON ----------- Heavy Assault Rifle > --- INVENTORY -------- Light Ion Engine Aluminum Leg Aluminum Leg Wheel Small Storage Unit Decoy Drone Bay Assault Rifle Assault Rifle [Rating: 14] Favorites ----------- Power Light Nuclear Core Engine Light Ion Engine Power Core Light Nuclear Core Propulsion Aluminum Leg Leg Aluminum Leg Wheel Wheel Utility Medium Storage Unit Storage Medium Storage Unit Processor Improved Targeting Computer Weapon Heavy Assault Rifle Ballistic Gun Heavy Assault Rifle Build | -11 -10 -10 ------- Run | Yrd Mat Min Slots Evolved . | . . . Power . | . . . Propulsion . | . . . Utility . | . . . Weapon . | . . . Parts Attached 23 | 7 9 7 Power 6 | 1 2 3 Engine 3 | 1 . 2 Core 3 | . 2 1 Reactor . | . . . Propulsion 8 | 3 3 2 Treads . | . . . Leg 6 | 2 3 1 Wheel 2 | 1 . 1 Hover . | . . . Flight . | . . . Utility 3 | 1 2 . Device . | . . . Storage 2 | 1 1 . Processor 1 | . 1 . Hackware . | . . . Protection . | . . . Artifact . | . . . Weapon 6 | 2 2 2 Energy Gun . | . . . Energy Cannon . | . . . Ballistic Gun 6 | 2 2 2 Ballistic Cannon . | . . . Launcher . | . . . Special Weapon . | . . . Impact Weapon . | . . . Slashing Weapon . | . . . Piercing Weapon . | . . . Special Melee Weapon . | . . . Unidentified Prototypes . | . . . Parts Lost 7 | . 2 5 Power 3 | . 1 2 Propulsion 1 | . . 1 Utility . | . . . Weapon 3 | . 1 2 Highest Loss Streak 3 | . 2 3 To Critical Strikes . | . . . Average Slot Usage (%) 84 | . 81 88 Engine 2 | . 3 . Core 11 | . 9 13 Leg 27 | . 28 27 Storage 14 | . 14 14 Processor 6 | . . 14 Ballistic Gun 21 | . 24 17 Naked Turns . | . . . Heaviest Build 21 | 12 21 19 Greatest Support 27 | 20 20 27 Greatest Overweight (x) 1 | 1 1 1 Average Overweight (x) . | . . . Largest Inventory Capacity 10 | 8 10 10 Average Capacity 9 | 6 9 10 Most Carried 9 | 5 8 9 Average Carried 6 | 2 5 7 Final Capacity 10 | 8 10 10 Final Carried 7 | 2 7 6 Class Distribution -------------------- 100% | Mutant Dominant Class ---------------- Mutant | -10/Materials Mutant | -10/Mines Resources | -11 -10 -10 ----------- Run | Yrd Mat Min Matter Collected 724 | 149 416 159 Remotely . | . . . Salvage Created 556 | . 403 153 Parts 44 | . 33 11 Haulers Intercepted . | . . . Recyclers Shooed 2 | . 2 . Parts Field Recycled . | . . . Retrieved Matter . | . . . Parts Self-Destructed . | . . . Prevented . | . . . Kills | -11 -10 -10 ------- Run | Yrd Mat Min Combat Hostiles Destroyed 14 | . 9 5 Guns 14 | . 9 5 Classes Destroyed 5 | . 5 . Worker 1 | . 1 . Builder 1 | . 1 . Watcher 3 | . 3 . Swarmer 6 | . 3 3 Grunt 8 | . 6 2 Best Kill Streak 5 | . 5 3 Combat Bots Only 4 | . 4 3 Max Kills in Single Turn 1 | . 1 1 Gunslinging . | . . . Exploded . | . . . Melee . | . . . Uniques/NPCs Destroyed . | . . . Combat | -11 -10 -10 -------- Run | Yrd Mat Min Hostile Shots Fired 112 | . 69 43 Missed 35 | . 21 14 Damage Taken 1184 | . 615 569 Core 251 | . 136 115 Absorbed by Shields . | . . . Core Remaining (%) 100 | 100 . . Volleys Fired 70 | . 54 16 Largest 2 | . 2 2 Hottest 46 | . 46 40 Shots Fired 105 | . 84 21 Gun 105 | . 84 21 Cannon . | . . . Launcher . | . . . Special . | . . . Kinetic 105 | . 84 21 Thermal . | . . . Explosive . | . . . Electromagnetic . | . . . Robot Hit Streak 9 | . 6 9 Robot Miss Streak 4 | . 4 2 Penetration Max . | . . . Secondary Targets 5 | . 3 2 Max Gunslinging Chain 1 | . 1 1 Shots Hit Robots 67 | . 51 16 Core Hits 26 | . 20 6 Critical Kills . | . . . Critical Parts Destroyed . | . . . Critical Strikes . | . . . Melee Attacks . | . . . Impact . | . . . Slashing . | . . . Piercing . | . . . Sneak Attacks . | . . . Combat Hostiles . | . . . Follow-up Attacks . | . . . Damage Inflicted 1092 | . 830 262 Guns 1073 | . 814 259 Cannons . | . . . Explosions . | . . . Melee . | . . . Ramming 19 | . 16 3 Kinetic 1073 | . 814 259 Thermal . | . . . Explosive . | . . . Electromagnetic . | . . . Impact . | . . . Slashing . | . . . Piercing . | . . . Highest Corruption 2 | . 2 2 Average Corruption 2 | . 2 2 Corruption Purged . | . . . Corruption Blocked . | . . . Effects 11 | . 4 7 Message Errors 2 | . . 2 Matter Fused 1 | . 1 . Heat Flow Errors 2 | . 1 1 Energy Discharges 4 | . 1 3 Data Loss (major) 1 | . . 1 Alerts 1 | . 1 . Overload Shots . | . . . Overflow Damage . | . . . Projectiles . | . . . Explosions . | . . . Melee . | . . . Knockbacks . | . . . Impact . | . . . Kinetic . | . . . Secondary . | . . . Self-Inflicted Damage . | . . . Shots . | . . . Rammed . | . . . Targets Rammed 4 | . 3 1 Kicked 4 | . 3 1 Crushed . | . . . Highest Temperature 226 | . 226 127 Average Temperature 83 | . 86 62 Received Heat Transfer 308 | . 261 47 Siege Activations . | . . . Robots Corrupted . | . . . Combat Hostiles . | . . . Parts Fried . | . . . Impact Corruptions . | . . . Robots Melted . | . . . Combat Hostiles . | . . . Parts Melted . | . . . Heat Transferred . | . . . Parts Sabotaged . | . . . Parts Stolen . | . . . Parts Stripped . | . . . Power Chain Reactions . | . . . Alert | -11 -10 -10 ------- Run | Yrd Mat Min Peak Influence 156 | . 156 70 Initial . | . . . Average 46 | . 66 23 Maximum Alert Level . | . . . Low Security (%) 100 | 100 100 100 Level 1 . | . . . Level 2 . | . . . Level 3 . | . . . Level 4 . | . . . Level 5 . | . . . High Security . | . . . Max Security . | . . . Squads Dispatched 4 | . 3 1 Investigation 4 | . 3 1 Extermination . | . . . Reinforcement . | . . . Assault . | . . . Garrison . | . . . Intercept . | . . . Searches Triggered . | . . . Construction Impeded . | . . . Haulers Reinforced . | . . . Active Scanning Responses . | . . . Cargo Convoy Interrupts . | . . . Stealth | -11 -10 -10 --------- Run | Yrd Mat Min Distress Signals . | . . . Communications Jammed . | . . . Distress Signals . | . . . Times Spotted 28 | . 12 16 Peak Tracking Total 9 | . 5 9 Tactical Retreats 1 | . 1 . Traps | -11 -10 -10 ------- Run | Yrd Mat Min Traps Triggered 4 | . 4 . Indirectly . | . . . Trap Hack Attempts . | . . . Triggered . | . . . Disarmed . | . . . Reprogrammed . | . . . Reused . | . . . Traps Extracted . | . . . Installed . | . . . Triggered . | . . . Machines | -11 -10 -10 ---------- Run | Yrd Mat Min Machines Disabled 1 | . 1 . Max in Single Turn 1 | . 1 . Machines Repaired . | . . . Machines Dismantled . | . . . Machines Sabotaged . | . . . Overloaded Fab Kills . | . . . Hacking | -11 -10 -10 --------- Run | Yrd Mat Min Machines Accessed 5 | . 3 2 Terminals 3 | . 3 . Fabricators . | . . . Repair Stations . | . . . Recycling Units . | . . . Scanalyzers . | . . . Garrison Access . | . . . Total Hacks 17 | . 15 2 Successful 7 | . 5 2 Failed 10 | . 10 . Catastrophic 2 | . 2 . Database Lockouts . | . . . Manual 16 | . 16 . Terminals 15 | . 15 . Fabricators . | . . . Repair Stations . | . . . Recycling Units . | . . . Scanalyzers . | . . . Garrison Access . | . . . Terminal Hacks 4 | . 2 2 Open Door 2 | . . 2 Branch Access Points 1 | . 1 . Recall Investigation 1 | . 1 . Fabricator Hacks . | . . . Repair Station Hacks . | . . . Recycling Unit Hacks . | . . . Scanalyzer . | . . . Garrison Access Hacks . | . . . Unauthorized Hacks 3 | . 3 . Terminals 3 | . 3 . Botnet 3 | . 3 . Fabricators . | . . . Repair Stations . | . . . Recycling Units . | . . . Scanalyzers . | . . . Garrison Access . | . . . Data Cores Recovered . | . . . Used . | . . . Hacking Detections 3 | . 3 . Full Trace Events 3 | . 3 . Feedback Events . | . . . Feedback Blocked . | . . . Robot Schematics Acquired . | . . . Robots Built . | . . . Authchips . | . . . Time . | . . . Total Robot Build Rating . | . . . Part Schematics Acquired . | . . . Parts Built . | . . . Authchips . | . . . Time . | . . . Total Part Build Rating . | . . . Parts Repaired . | . . . Time . | . . . Parts Recycled . | . . . Recycled Matter . | . . . Retrieved Matter . | . . . Retrieved Components . | . . . Parts Scanalyzed . | . . . Part Schematics Acquired . | . . . Parts Damaged . | . . . Bothacking | -11 -10 -10 ------------ Run | Yrd Mat Min Used RIF Installer . | . . . Robots Hacked . | . . . Non-combat . | . . . Combat . | . . . Robot Hacks Applied . | . . . Relay Couplers Released . | . . . Fabnet Peak Effective % . | . . . Robots Rewired . | . . . Allies Hacked . | . . . Hacks Repelled . | . . . Allies | -11 -10 -10 -------- Run | Yrd Mat Min Total Allies . | . . . Largest Group . | . . . Highest-Rated Group . | . . . Highest-Rated Ally . | . . . Total Orders . | . . . Ally Attacks . | . . . Total Damage . | . . . Kills . | . . . Allies Corrupted . | . . . Allies Melted . | . . . Intel | -11 -10 -10 ------- Run | Yrd Mat Min Robot Analysis Total . | . . . Derelict Logs Recovered 1 | . . 1 Drone Launches . | . . . Drone Recoveries . | . . . Exploration | -11 -10 -10 ------------- Run | Yrd Mat Min Turns Passed 1489 | 48 821 620 Spaces Moved 922 | 32 435 455 Core 13 | 13 . . Treads . | . . . Legs 884 | 19 435 430 Wheels 25 | . . 25 Hover . | . . . Flight . | . . . Fastest Speed 50 | 50 120 95 Average Speed 134 | 93 149 122 Slowest Speed 190 | 120 190 125 Overloaded Moves . | . . . Propulsion Burnouts . | . . . Robots Hopped . | . . . Cave-ins Triggered . | . . . Exploration Rate (%) 52 | 3 66 88 Regions Visited 2 Branch Regions 1 Pre-discovered Areas . | . . . Known Exits Taken 1 | . 1 . Unknown Exits Taken 1 | 1 . . Scrap Searched 1 | . . 1 Spaces Dug . | . . . Terrain Destroyed . | . . . Melee . | . . . Projectile . | . . . AOE . | . . . Terrain Rammed . | . . . Walls Destroyed . | . . . Machines Disabled . | . . . Actions | -11 -10 -10 --------- Run | Yrd Mat Min Total 1064 | 49 518 497 Wait 23 | 5 4 14 Move 920 | 31 434 455 Hop . | . . . Pick Up 18 | 5 10 3 Fast Attach 3 | 3 . . Attach 11 | 4 3 4 Detach 2 | 1 1 . Swap 9 | . 6 3 Drop 4 | . 3 1 Fire 70 | . 54 16 Melee . | . . . Ram . | . . . Kick 4 | . 3 1 Crush . | . . . Escape Stasis . | . . . Rewire . | . . . Trap . | . . . Miscellaneous . | . . . Route ------- -11/Scrapyard -10/Materials (discovered 3 exits: [*Mat] / *Min x2) -10/Mines (discovered 2 exits: [*Mat x2]) History --------- Turn | Location | Event 6 | -11/Scrapyard | Discovered new exit (range 15) 49 | -11/Scrapyard | Entered Materials 90 | -10/Materials | Discovered new exit (range 9) 315 | -10/Materials | Build established: Mutant 498 | -10/Materials | Discovered new exit (range 9) 737 | -10/Materials | Identified exit to Mines 801 | -10/Materials | Core integrity fell below 50% 870 | -10/Materials | Entered Mines 891 | -10/Mines | Met a Derelict bent on vengeance 992 | -10/Mines | Discovered new exit (range 10) 1011 | -10/Mines | Learned Materials trap positions 1018 | -10/Mines | Met a Derelict shopkeep closing up shop 1042 | -10/Mines | Discovered new exit (range 9) 1148 | -10/Mines | Found the Drone Emporium 1153 | -10/Mines | Found Prototype Device 1448 | -10/Mines | Assembled infested the area 1489 | -10/Mines | Core integrity fell below 20% 1490 | -10/Mines | Destroyed by D-53 Grenadier with Mini Grenade Launcher Last Messages --------------- System corrupted: Energy discharge (-38). ALERT: Infestation in the mines, dispatching Demolisher response squad. Acquired 6 matter. Acquired 10 matter. D-53 Grenadier unfolds itself. SHOP.Sys disabled. U-05 Engineer builds a Wall. as-98895 destroyed. Lgt. Nuclear Core destroyed. as-42293 sneak attacks. R-06 Scavenger knocked back. U-05 Engineer lays Concrete. Assault Rifle destroyed. U-05 Engineer lays Concrete. R-06 Scavenger system corrupted by crushing effect. U-05 Engineer builds a Wall. U-05 Engineer destroyed. Wheel destroyed. Map ----- +----------------------------------------------------+ | #??????????????????????????????????? | | ##??????????????????????????????????? | | #### #???????????????????????????????????? | | ##??# #####???????????????????????????????? | | ##???# #???????????????????????????????? | | #????# #???????????????????????????????? | | #????##### #???????????????????????????????? | | #????????# ###?????????????????????????????? | | #????????# #????? #????? ???????????????? | | ##???????### #### # ??????????????? | | ########### ??????????????? | | % =%= ??????????????? | | ########[#### #?????????????????? | | ##?????# #??? #####?????????????????? | | ##????# #???? ##?????????????????????? | | #????#%#?????####??????????????????????? | | #???# #????####??????????####### ?????? | | #???# #???## ##???????## ?????? | | ##???# #??## ##?????# ????? | | #####????# #??# ##???? ????? | | ?????????# #?## #???# ????? | | ??########%### #### ???? | | ?##""## r r # ???? | | ?#" # #???? | | ?#" a ?????? | | ?#" @ #?? ? #?????? | | ?#" # dd #?? #?????? | | ?##""## % ##?? #?????? | | ??#### ##?? #?????? | | ?????## ######## ##??? #??????? | | ??????####?????## ##???? #???????? | | ??????????????## ####?# #???????? | | ?????????????## ## #???????? | | ????????????# #????????? | | ???????????# k ##????????? | | ???????????##### ##### #?????????? | | ???????????????## ##???## #?????????? | | ????????????????## #?????## #?????????? | | ????#########????# #??????## #?????????? | | ???## ## ##???# #???????## ##?????????? | | ???# ##??# #????????# ##??????????? | | #### """ #### #????????# #???????????? | | """ #????????# #???????????? | | #### = """ #??????### #???????????? | | #??# % #########??????# #???????????? | | #??##! ###????????####### ###???????????? | | #???### ##??????????# #?????????????? | | ##?????# #???????????# #######?????????????? | | ???????# #??????###### #???????????????????? | | ?????### #####??# #?####??????????????? | +----------------------------------------------------+ Best States ------------- Heat Dissipation 25 Energy Generation 14 Energy Capacity 160 Matter Stores 300 Matter Capacity 300 Sight Range 16 Terrain Scan Density 10 Evasion (%) 55 Targeting Accuracy 6 Item Schematics ----------------- None Robot Schematics ------------------ None Fabricated ------------ Nothing Alien Tech Used ----------------- None Achievements -------------- Quantum Hacking root@ Challenges ------------ None Game ------ Seed MasterAccelerationDoomcannon Manual? 0 Play Time 00:15:15 Cumulative 6.5 hours Start 2024.04.04 @ 19:09:22 End 2024.04.04 @ 19:23:33 Sessions 1 Manual Loads 0 Difficulty Rogue Special Mode None Game No. 13 Rogue 12 Adventurer 1 Explorer 0 Win Type - Total 0 Types 0/0/0/0/0/0/0/0/0 Lore% 3 Gallery% 15 Achievement% 14 Wizard Run 0 Options --------- Layout 1 ASCII 0 Keyboard 0 Movement Mouse Keybinds 0 Fullscreen 2 Font 24/Smallcaps Map View 50x35 Zoom Use 0% Tactical HUD 0 Map Filters NONE Filters NONE Steam 1 RUN: ec092596-71ec-4484-b7fb-85534c0676b6